Cogmind - Beta 9.5 @@@ ROGUE MODE // 2020.04.10 @ 17:02:24 // Winter2019/RPGLIKE Player: IAMCRAIG Result: Destroyed by as-30968 with Assembled Blade Performance ------------- Evolutions (0) 0 Regions Visited (2) 400 Robots Destroyed (46) 230 Value Destroyed (814) 814 Prototype IDs (2) 40 Alien Tech Used (0) 0 Bonus (-87) -87 TOTAL SCORE: 1397 Bonus ------- Follower Combat Kills 35 Friendly Fire -122 Cogmind --------- Core Integrity 0/1050 Matter 256/300 Energy 153/160 System Corruption 2% Temperature Cool (2) Movement Hovering (80) Location -10/Mines Parts ------- > --- POWER (1) -------- Light Nuclear Core > --- PROPULSION (2) --- Combat Airjet > --- UTILITY (5) ------ Improved Heat Sink Improved Sensor Array Improved Terrain Scanner > --- WEAPON (1) ------- Particle Cannon > --- INVENTORY (1) ---- (None) Peak State ------------ > --- POWER ------------ Light Nuclear Core > --- PROPULSION ------- Light Treads Combat Airjet > --- UTILITY ---------- Improved Heat Sink Improved Sensor Array Improved Terrain Scanner Light Armor Plating Hacking Suite > --- WEAPON ----------- Particle Cannon > --- INVENTORY -------- Rocket Launcher [Rating: 22] Favorites ----------- Power Light Nuclear Core Engine Light Ion Engine Power Core Light Nuclear Core Propulsion Light Treads Treads Light Treads Hover Unit Combat Airjet Utility Seismic Analyzer Device Improved Terrain Scanner Storage High-capacity Matter Pod Processor Seismic Analyzer Hackware Hacking Suite Protection Light Armor Plating Weapon Particle Cannon Energy Gun EM Pulse Gun Energy Cannon Particle Cannon Launcher Rocket Launcher Build | -11 -10 -10 ------- Run | Scr Mat Min Slots Evolved 5 | 4 1 . Power . | . . . Propulsion 1 | 1 . . Utility 4 | 3 1 . Weapon . | . . . Parts Attached 29 | 9 16 4 Power 3 | 1 2 . Engine 1 | 1 . . Core 2 | . 2 . Reactor . | . . . Propulsion 5 | 2 2 1 Treads 4 | 2 2 . Leg . | . . . Wheel . | . . . Hover 1 | . . 1 Flight . | . . . Utility 15 | 5 9 1 Device 7 | 1 5 1 Storage 1 | . 1 . Processor 5 | 4 1 . Hackware 1 | . 1 . Protection 1 | . 1 . Artifact . | . . . Weapon 6 | 1 3 2 Energy Gun 1 | 1 . . Energy Cannon 4 | . 3 1 Ballistic Gun . | . . . Ballistic Cannon . | . . . Launcher 1 | . . 1 Special Weapon . | . . . Impact Weapon . | . . . Slashing Weapon . | . . . Piercing Weapon . | . . . Special Melee Weapon . | . . . Unidentified Prototypes . | . . . Parts Lost 1 | . . 1 Power . | . . . Propulsion . | . . . Utility 1 | . . 1 Weapon . | . . . Highest Loss Streak 1 | . . 1 Average Slot Usage (%) 98 | . 99 96 Core 10 | . 10 11 Treads 22 | . 23 20 Device 27 | . 25 33 Processor 8 | . 12 . Hackware 6 | . 5 9 Protection 8 | . 7 9 Energy Gun 1 | . 1 . Energy Cannon 10 | . 9 10 Naked Turns . | . . . Heaviest Build 18 | 6 18 15 Greatest Support 45 | 25 45 45 Greatest Overweight (x) 2 | . 2 . Average Overweight (x) . | . . . Largest Inventory Capacity 1 | . . 1 Average Capacity . | . . . Most Carried 1 | . . 1 Average Carried . | . . . Final Capacity 1 | . . 1 Final Carried . | . . . Class Distribution -------------------- 69% | Mutant 27% | Scavenger-Mutant 3% | Scout Dominant Class ---------------- Mutant | -10/Materials Mutant | -10/Mines Resources | -11 -10 -10 ----------- Run | Scr Mat Min Matter Collected 665 | 290 330 45 Remotely . | . . . Salvage Created 1359 | 267 686 406 Parts 77 | 24 35 18 Haulers Intercepted 2 | . 2 . Recyclers Shooed 1 | 1 . . Parts Field Recycled . | . . . Retrieved Matter . | . . . Parts Self-Destructed . | . . . Prevented . | . . . Kills | -11 -10 -10 ------- Run | Scr Mat Min Combat Hostiles Destroyed 27 | . 11 16 Guns 7 | . 7 . Cannons 12 | . 4 8 AOE 8 | . . 8 Classes Destroyed 9 | 2 6 1 Worker 1 | . 1 . Tunneler 8 | 8 . . Hauler 2 | . 2 . Recycler 3 | 1 . 2 Operator 1 | . 1 . Watcher 3 | . 3 . Swarmer 2 | . 2 . Grunt 15 | . 9 6 Assembled 11 | . . 11 Best Kill Streak 9 | 6 4 9 Combat Bots Only 9 | . 4 9 Max Kills in Single Turn 6 | 1 1 6 Gunslinging . | . . . Exploded 6 | . . 6 Melee . | . . . Uniques/NPCs Destroyed . | . . . Combat | -11 -10 -10 -------- Run | Scr Mat Min Damage Taken 1978 | . 598 1380 Core 1635 | . 492 1143 Absorbed by Shields . | . . . Redirected to Core 1080 | . 338 742 Core Remaining (%) 100 | 100 . . Volleys Fired 133 | 27 79 27 Largest 1 | 1 1 1 Hottest 68 | 40 68 68 Shots Fired 133 | 27 79 27 Gun 62 | 27 35 . Cannon 68 | . 44 24 Launcher 3 | . . 3 Special . | . . . Kinetic . | . . . Thermal 68 | . 44 24 Explosive 3 | . . 3 Electromagnetic 62 | 27 35 . Robot Hit Streak 12 | 4 12 6 Robot Miss Streak 5 | 5 3 5 Penetration Max . | . . . Secondary Targets . | . . . Shots Hit Robots 79 | 14 48 17 Core Hits 60 | 10 24 26 Critical Hits . | . . . Critical Kills . | . . . Critical Parts Destroyed . | . . . Melee Attacks . | . . . Impact . | . . . Slashing . | . . . Piercing . | . . . Sneak Attacks . | . . . Combat Hostiles . | . . . Follow-up Attacks . | . . . Damage Inflicted 2088 | 321 984 783 Guns 604 | 223 381 . Cannons 956 | . 538 418 Explosions 494 | 98 46 350 Melee . | . . . Ramming 34 | . 19 15 Kinetic . | . . . Thermal 1100 | 98 584 418 Explosive 350 | . . 350 Electromagnetic 604 | 223 381 . Impact . | . . . Slashing . | . . . Piercing . | . . . Highest Corruption 2 | . . 2 Average Corruption 2 | . . 2 Corruption Purged . | . . . Effects 1 | . . 1 Energy Discharges 1 | . . 1 Overload Shots . | . . . Overflow Damage 17 | 4 11 2 Projectiles 13 | . 11 2 Explosions 4 | 4 . . Melee . | . . . Knockbacks . | . . . Impact . | . . . Kinetic . | . . . Secondary . | . . . Self-Inflicted Damage 249 | . 172 77 Shots 5 | . 3 2 Rammed 11 | . 3 8 Targets Rammed 11 | . 3 8 Kicked . | . . . Crushed . | . . . Highest Temperature 214 | . 214 40 Average Temperature 42 | . 50 10 Received Heat Transfer 361 | . 210 151 Siege Activations . | . . . Robots Corrupted . | . . . Combat Hostiles . | . . . Parts Fried 5 | 2 3 . Impact Corruptions . | . . . Robots Melted . | . . . Combat Hostiles . | . . . Parts Melted 4 | . 2 2 Heat Transferred 1902 | 100 1062 740 Parts Sabotaged . | . . . Parts Stolen . | . . . Parts Stripped . | . . . Power Chain Reactions 3 | 2 1 . Missiles Intercepted . | . . . Alert | -11 -10 -10 ------- Run | Scr Mat Min Peak Influence 379 | 45 379 264 Average Influence 181 | 22 245 133 Maximum Alert Level 1 | . 1 1 Low Security (%) 51 | 100 26 77 Level 1 48 | . 73 22 Level 2 . | . . . Level 3 . | . . . Level 4 . | . . . Level 5 . | . . . High Security . | . . . Max Security . | . . . Squads Dispatched 2 | . 2 . Investigation . | . . . Extermination . | . . . Reinforcement 2 | . 2 . Assault . | . . . Garrison . | . . . Intercept . | . . . Construction Impeded . | . . . Haulers Reinforced . | . . . Stealth | -11 -10 -10 --------- Run | Scr Mat Min Distress Signals 5 | . 3 2 Communications Jammed . | . . . Distress Signals . | . . . Times Spotted 48 | . 20 28 Peak Tracking Total 10 | . 5 10 Tactical Retreats 2 | . . 2 Traps | -11 -10 -10 ------- Run | Scr Mat Min Traps Triggered 1 | . 1 . Indirectly . | . . . Trap Hack Attempts . | . . . Triggered . | . . . Disarmed . | . . . Reprogrammed . | . . . Reused . | . . . Traps Extracted . | . . . Installed . | . . . Triggered . | . . . Machines | -11 -10 -10 ---------- Run | Scr Mat Min Machines Disabled 11 | . 11 . Max in Single Turn 2 | . 2 . Machines Sabotaged . | . . . Garrisons Compromised . | . . . Overloaded Fab Kills . | . . . Fab Network Shutdowns . | . . . Hacking | -11 -10 -10 --------- Run | Scr Mat Min Machines Accessed 5 | . 5 . Terminals 3 | . 3 . Fabricators . | . . . Repair Stations . | . . . Recycling Units 2 | . 2 . Scanalyzers . | . . . Garrison Access . | . . . Total Hacks 34 | . 34 . Successful 26 | . 26 . Failed 8 | . 8 . Catastrophic . | . . . Database Lockouts . | . . . Manual 23 | . 23 . Terminals 19 | . 19 . Fabricators . | . . . Repair Stations . | . . . Recycling Units 15 | . 15 . Scanalyzers . | . . . Garrison Access . | . . . Terminal Hacks 6 | . 6 . Robot Analysis 4 | . 4 . Prototype ID Bank 1 | . 1 . Locate Traps 1 | . 1 . Fabricator Hacks . | . . . Repair Station Hacks . | . . . Recycling Unit Hacks 7 | . 7 . Report Inventory 4 | . 4 . Retrieve Matter 1 | . 1 . Retrieve Components 2 | . 2 . Scanalyzer . | . . . Garrison Access Hacks . | . . . Unauthorized Hacks 30 | . 30 . Terminals 7 | . 7 . Track 2 | . 2 . Botnet 3 | . 3 . Disrupt 1 | . 1 . Operators 1 | . 1 . Fabricators . | . . . Repair Stations . | . . . Recycling Units 6 | . 6 . Monitor 1 | . 1 . Reject 2 | . 2 . Recyclers 1 | . 1 . Mask 2 | . 2 . Scanalyzers . | . . . Garrison Access . | . . . Data Cores Recovered . | . . . Used . | . . . Hacking Detections 5 | . 5 . Full Trace Events . | . . . Feedback Events . | . . . Feedback Blocked . | . . . Robot Schematics Acquired . | . . . Robots Built . | . . . Matter . | . . . Time . | . . . Total Robot Build Rating . | . . . Part Schematics Acquired . | . . . Parts Built . | . . . Matter . | . . . Time . | . . . Total Part Build Rating . | . . . Parts Repaired . | . . . Time . | . . . Parts Recycled . | . . . Recycled Matter . | . . . Retrieved Matter . | . . . Retrieved Components 11 | . 11 . Parts Scanalyzed . | . . . Part Schematics Acquired . | . . . Parts Damaged . | . . . Bothacking | -11 -10 -10 ------------ Run | Scr Mat Min Used RIF Installer . | . . . Robots Hacked . | . . . Non-combat . | . . . Combat . | . . . Robot Hacks Applied . | . . . Relay Couplers Released . | . . . Robots Rewired . | . . . Allies Hacked . | . . . Hacks Repelled . | . . . Allies | -11 -10 -10 -------- Run | Scr Mat Min Total Allies 3 | . . 3 Largest Group 3 | . . 3 Highest-Rated Group 40 | . . 40 Highest-Rated Ally 16 | . . 16 Total Orders . | . . . Ally Attacks 29 | . . 29 Total Damage 313 | . . 313 Kills 1 | . . 1 Allies Corrupted . | . . . Allies Melted . | . . . Intel | -11 -10 -10 ------- Run | Scr Mat Min Robot Analysis Total 4 | . 4 . Derelict Logs Recovered 1 | . . 1 Drone Launches . | . . . Drone Recoveries . | . . . Exploration | -11 -10 -10 ------------- Run | Scr Mat Min Turns Passed 1711 | 233 962 516 Spaces Moved 1018 | 116 630 272 Core 532 | 113 419 . Treads 455 | 3 211 241 Legs . | . . . Wheels . | . . . Hover 31 | . . 31 Flight . | . . . Fastest Speed 50 | 50 50 80 Average Speed 120 | 52 118 151 Slowest Speed 160 | 160 160 160 Overloaded Moves . | . . . Propulsion Burnouts . | . . . Robots Hopped . | . . . Cave-ins Triggered 1 | . . 1 Exploration Rate (%) 46 | 4 92 43 Regions Visited 2 Branch Regions 1 Pre-discovered Areas 1 | . . 1 Known Exits Taken . | . . . Unknown Exits Taken 2 | 1 1 . Scrap Searched 1 | . . 1 Spaces Dug . | . . . Terrain Destroyed 125 | 8 91 26 Melee . | . . . Projectile 1 | . . 1 AOE 124 | 8 91 25 Actions | -11 -10 -10 --------- Run | Scr Mat Min Total 1363 | 255 764 344 Wait 130 | 104 13 13 Move 1016 | 115 629 272 Hop . | . . . Pick Up 2 | . . 2 Fast Attach 19 | 8 10 1 Attach . | . . . Detach 3 | . 3 . Swap 10 | 1 6 3 Drop 14 | . 9 5 Fire 133 | 27 79 27 Melee . | . . . Ram . | . . . Kick . | . . . Crush 11 | . 3 8 Escape Stasis . | . . . Rewire . | . . . Trap . | . . . Miscellaneous 25 | . 12 13 Route ------- -11/Scrapyard -10/Materials (discovered 4 exits: [*Mat x3] / [*Min]) -10/Mines (discovered 1 exit: [*Mat]) History --------- Turn | Location | Event 1 | -11/Scrapyard | Upgraded with Propulsion slot (x1) 1 | -11/Scrapyard | Upgraded with Utility slot (x3) 17 | -11/Scrapyard | Discovered new exit (range 15) 234 | -11/Scrapyard | Entered Materials 267 | -10/Materials | Discovered new exit (range 13) 318 | -10/Materials | Build established: Scavenger-Mutant 419 | -10/Materials | Discovered new exit (range 15) 594 | -10/Materials | Reached level 2 600 | -10/Materials | Upgraded with Utility slot (x1) 867 | -10/Materials | Discovered new exit (range 16) 1057 | -10/Materials | Discovered new exit (range 15) 1077 | -10/Materials | Build established: Mutant 1196 | -10/Materials | Entered Mines 1204 | -10/Mines | Assisted by bots powering up and referring to "LRC-V3" 1227 | -10/Mines | Reached level 3 1244 | -10/Mines | Discovered new exit (range 9) 1334 | -10/Mines | Received a Rocket Launcher from a helpful Derelict 1599 | -10/Mines | Assembled infested the area 1604 | -10/Mines | Assisted by a Guerilla fighting off Assembled 1656 | -10/Mines | Core integrity fell below 50% 1659 | -10/Mines | Crushed by falling debris 1659 | -10/Mines | Core integrity fell below 20% 1686 | -10/Mines | Destroyed 9 combat bots 1712 | -10/Mines | Destroyed by as-30968 with Assembled Blade Last Messages --------------- 01662_ K-01 Serf collects debris. 01665_ as-93511 destroyed. 01672_ Dropped Rocket Launcher. 01673_ K-01 Serf destroyed. 01673_ Acquired Protomatter-49. 01674_ U-05 Engineer lays Concrete. 01675_ U-05 Engineer builds a Wall. 01677_ The unstable cave ceiling collapses. 01678_ Acquired 14 matter. 01683_ Dropped Lgt. Treads. 01684_ U-05 Engineer lays Concrete. 01685_ U-05 Engineer builds a Wall. 01689_ as-56148 destroyed. 01690_ The unstable cave ceiling collapses. 01690_ Rocket Launcher crushed. 01690_ The unstable cave ceiling collapses. 01693_ System corrupted: Energy discharge (-41). 01706_ Destroyed Asb. Hover Unit. 01708_ Dropped Protomatter-49. 01711_ as-84873 destroyed. Map ----- +----------------------------------------------------+ | ### ####################### ############ ## | | ### ###################### ########### ## | | #### ##################### ########### ## | | ##### ###################### ############ ## | | ##### ####################### ############ ### | | ##### ####################### ########### #### | | ##### ####################### ########## ##### | | [%===%!%*=############ ######### * ##### | | ### ###########%########### ####### % #### | | ### ###########=* % ## # *### ### | | ### #################### ## [%%! ### | | ###%##########?######### ## = #=#### #### | | ###!## ############## # ## = ########### | | ###|## ############## ## = % ########### | | ###%## ############# ## ########### | | ###!## ############ # %= ############ | | ###!## ########### ##? # ############ | | ### ## ########## ### ## ############ | | # ##### ########## ?### # ############ | | # ####### ########## ? ### ## ############### | | # ####### ? ### ###?### ############## | | ############### #### #### ################## | | # ############### #### ##### ################## | | # ############### #### ##### #################? | | # ############### k##### ###############??? | | ####################r %@a ################?? | | ################### ######################?# | | ############## ##################?#?#?# | | ########### ##### ## ######?##??# | | ########## < #########??# | | ### ######### ##########??? | | #### ######## ######## #######?##?#? | | #### ######### ######???####? | | ### #### %%!= ##### ##########????? | | #?# #### ![ ##### #####?####?#??? | | #### ##### ###### ##### ##########?##?? | | ###### ###### ########### ##### ######?###??#?? | | ###### ###### ########### ##### #####?#?###?##? | | ###### ###### ###########?##### #########??#?#? | | ###### ####### ### #?###??##?????# | | #? #?# ## ####### #?# #####?####????? | | ###### ## ### ### #####?#####???? | | ###### ## ### ### #?###????#??? | | ?#### ## #####? ####???????? | | #?##?# ##### ##### ?#??##??????? | | ###?### ##### ##?###???#????????? | | ######?# ##### #?#?????##????????? | | #####?#### ###### ##?? ???#?????????? | | ?##?#############?#### #?#?#?????????????? | | ?#?#?###########################???????????????? | +----------------------------------------------------+ Best States ------------- Heat Dissipation 39 Energy Generation 14 Energy Capacity 160 Matter Stores 500 Matter Capacity 500 Sight Range 16 Robot Scan Range 19 Terrain Scan Range 16 Terrain Scan Density 410 Armor Coverage 150 Evasion (%) 50 Recoil Reduction 2 Offensive Hacking 10 Item Schematics ----------------- None Robot Schematics ------------------ None Fabricated ------------ Nothing Alien Tech Used ----------------- None Achievements -------------- None Challenges ------------ None RPGLIKE | -11 -10 -10 --------- Run | Scr Mat Min Levels Raised 2 | . 1 1 XP Earned 6737 | 3000 2350 1387 XP Spent 5900 | 3000 1500 1400 Upgrades 23 | 5 3 15 Propulsion Slot 1 | 1 . . Utility Slot 4 | 3 1 . Core Integrity 9 | . . 9 Mass Support 1 | 1 . . Inventory Capacity 1 | . . 1 Sensor Range 3 | . 1 2 Terrain Scan Density 4 | . 1 3 Protomatter Created 229 | . 95 134 Integrity Restored 555 | . 261 294 Core 555 | . 261 294 Protomatter Decayed 1 | . . 1 Game ------ Seed GuidedCoreBay Manual? 0 Play Time 00:18:51 Cumulative 147.8 hours Start 2020.04.10 @ 16:45:27 End 2020.04.10 @ 17:02:24 Sessions 1 Manual Loads 0 Difficulty Rogue Special Mode Winter2019/RPGLIKE Game No. 56 Rogue 56 Adventurer 0 Explorer 0 Win Type - Total 1 Types 1/0/0/0/0/0/0 Lore% 58 Gallery% 69 Achievement% 63 Wizard Run 0 Options --------- ASCII 1 Keyboard 1 Movement Numpad Keybinds 0 Fullscreen 1 Font 16/SmallcapsGlow Map View 75x55 Tactical HUD 1 Map Filters NONE Filters NONE Steam 1 RUN: d57cdc07-64d8-4e01-a2c5-227a05a28914